Cogmind - Beta 17 @@@ ROGUE MODE // 2026.08.21 @ 10:33:39 Player: ATOM Result: Destroyed by S9-Y4Z(R) with Subdweller Machine Gun Performance ------------- Evolutions (0) 0 Regions Visited (2) 400 Robots Destroyed (16) 80 Value Destroyed (455) 455 Prototype IDs (2) 40 Alien Tech Used (0) 0 Bonus (0) 0 TOTAL SCORE: 975 Bonus ------- None Cogmind --------- Core Integrity 0/250 Matter 255/300 Energy 160/160 System Corruption 2% Temperature Cool (0) Movement Treading (160) Location -10/Subcaves Parts ------- > --- POWER (1) -------- Light Nuclear Core > --- PROPULSION (2) --- Light Treads Light Treads > --- UTILITY (2) ------ Large Storage Unit Visual Processing Unit > --- WEAPON (2) ------- Light Assault Rifle Light Assault Rifle > --- INVENTORY (15) --- Subdweller Power Source Light Treads Compact Wheel Compact Wheel Compact Wheel Subdweller Monowheel Medium Storage Unit Peak State ------------ > --- POWER ------------ Light Nuclear Core > --- PROPULSION ------- Light Treads Light Treads > --- UTILITY ---------- Improved Heat Sink Large Storage Unit > --- WEAPON ----------- Light Assault Rifle Light Assault Rifle > --- INVENTORY -------- Subdweller Power Source Light Treads Compact Wheel Compact Wheel Compact Wheel Subdweller Monowheel Medium Storage Unit Visual Processing Unit [Rating: 12] Favorites ----------- Power Light Ion Engine Engine Light Ion Engine Power Core Light Nuclear Core Propulsion Light Treads Treads Light Treads Utility Medium Storage Unit Device Improved Heat Sink Storage Medium Storage Unit Processor Visual Processing Unit Weapon Light Assault Rifle Energy Gun EM Pulse Gun Ballistic Gun Light Assault Rifle Special Weapon Mining Laser Build | -11 -10 -10 ------- Run | Yrd Mat Sub Slots Evolved . | . . . Power . | . . . Propulsion . | . . . Utility . | . . . Weapon . | . . . Parts Attached 21 | 6 8 7 Power 4 | 1 . 3 Engine 3 | 1 . 2 Core 1 | . . 1 Reactor . | . . . Propulsion 4 | 2 1 1 Treads 4 | 2 1 1 Leg . | . . . Wheel . | . . . Hover . | . . . Flight . | . . . Utility 7 | 1 4 2 Device 3 | . 2 1 Storage 3 | 1 2 . Processor 1 | . . 1 Hackware . | . . . Protection . | . . . Artifact . | . . . Weapon 6 | 2 3 1 Energy Gun 2 | 2 . . Energy Cannon . | . . . Ballistic Gun 3 | . 3 . Ballistic Cannon . | . . . Launcher . | . . . Special Weapon 1 | . . 1 Impact Weapon . | . . . Slashing Weapon . | . . . Piercing Weapon . | . . . Special Melee Weapon . | . . . Unidentified Prototypes . | . . . Corrupted Parts 1 | . 1 . System Corruption 2 | . 2 . Parts Lost 9 | . 3 6 Power 3 | . . 3 Propulsion 1 | . . 1 Utility 3 | . 2 1 Weapon 2 | . 1 1 Highest Loss Streak 4 | . 1 4 To Critical Strikes . | . . . Average Backups 6 | 1 6 7 Power 1 | . 1 1 Propulsion 3 | 1 3 4 Utility 1 | . 1 1 Weapon . | . . . Tool/Special . | . . . Unused Backups 8 | . 2 6 Power 2 | . 1 1 Propulsion 6 | . 1 5 Utility . | . . . Weapon . | . . . Tool/Special . | . . . Average Slot Usage (%) 98 | . 98 98 Engine 9 | . 14 3 Core 3 | . . 9 Treads 27 | . 28 27 Device 8 | . 7 9 Storage 19 | . 19 18 Energy Gun 4 | . 7 . Ballistic Gun 22 | . 20 26 Peak Build Rating 12 | 6 10 12 Average Rating 8 | 4 8 10 On Entrance 4 | . 6 8 Avg Prop Armor Cover (%) . | . . . Naked Turns . | . . . Heaviest Build 36 | 11 36 35 Greatest Support 40 | 40 40 40 Greatest Overweight (x) 1 | . . 1 Average Overweight (x) . | . . . Largest Inventory Capacity 15 | 8 15 15 Average Capacity 12 | 7 11 15 Most Carried 10 | 3 10 9 Average Carried 6 | 1 6 7 Final Capacity 15 | 8 15 15 Final Carried 9 | 3 9 7 Class Distribution -------------------- 72% | Mutant 27% | Scavenger-Mutant Dominant Class ---------------- Mutant | -10/Materials Scavenger-Mutant | -10/Subcaves Resources | -11 -10 -10 ----------- Run | Yrd Mat Sub Matter Collected 528 | 200 205 123 Remotely . | . . . Salvage Created 549 | . 362 187 Parts 33 | . 22 11 Haulers Intercepted . | . . . Recyclers Shooed . | . . . Parts Field Recycled . | . . . Retrieved Matter . | . . . Parts Self-Destructed 17 | . . 17 Prevented . | . . . Parts Restored . | . . . Kills | -11 -10 -10 ------- Run | Yrd Mat Sub Combat Hostiles Destroyed 12 | . 7 5 Guns 10 | . 7 3 Cannons 2 | . . 2 Classes Destroyed 5 | . 4 1 Recycler 1 | . 1 . Watcher 3 | . 3 . Swarmer 3 | . 3 . Grunt 8 | . 4 4 Subdweller 1 | . . 1 Best Kill Streak 6 | . 6 2 Combat Bots Only 4 | . 4 2 Max Kills in Single Turn 1 | . 1 1 Gunslinging . | . . . Exploded . | . . . Melee . | . . . Uniques/NPCs Destroyed . | . . . Combat | -11 -10 -10 -------- Run | Yrd Mat Sub Hostile Shots Fired 103 | . 42 61 Missed 26 | . 10 16 Hits 77 | . 32 45 Projectile 77 | . 32 45 Critical Strikes 1 | . . 1 Damage Taken 1302 | . 497 805 Core 265 | . 136 129 Absorbed by Shields . | . . . Core Remaining (%) 100 | 100 . . Volleys Fired 65 | . 26 39 Largest 2 | . 2 2 Hottest 120 | . 60 120 Shots Fired 122 | . 45 77 Gun 118 | . 45 73 Cannon . | . . . Launcher . | . . . Special 4 | . . 4 Kinetic 103 | . 30 73 Thermal 4 | . . 4 Explosive . | . . . Electromagnetic 15 | . 15 . Robot Hit Streak 18 | . 4 18 Robot Miss Streak 4 | . 4 1 Penetration Max . | . . . Secondary Targets 5 | . 4 1 Max Gunslinging Chain 1 | . 1 1 Shots Hit Robots 62 | . 24 38 Core Hits 32 | . 16 16 Critical Kills . | . . . Critical Parts Destroyed 1 | . 1 . Critical Strikes 2 | . 1 1 Destroy 2 | . 1 1 Melee Attacks . | . . . Impact . | . . . Slashing . | . . . Piercing . | . . . Sneak Attacks . | . . . Combat Hostiles . | . . . Follow-up Attacks . | . . . Damage Inflicted 669 | . 373 296 Guns 577 | . 353 224 Cannons . | . . . Explosions 20 | . 20 . Melee . | . . . Ramming . | . . . Kinetic 429 | . 205 224 Thermal 92 | . 20 72 Explosive . | . . . Electromagnetic 148 | . 148 . Impact . | . . . Slashing . | . . . Piercing . | . . . Highest Corruption 2 | . 2 2 Average Corruption 2 | . 2 2 Corruption Purged . | . . . Corruption Blocked . | . . . Effects 18 | . 9 9 Message Errors 4 | . 1 3 Matter Fused 3 | . 1 2 Heat Flow Errors 2 | . 1 1 Energy Discharges 2 | . . 2 Data Loss (minor) 5 | . 4 1 Data Loss (major) 2 | . 2 . Overload Shots . | . . . Overflow Damage 59 | . 59 . Projectiles . | . . . Explosions 59 | . 59 . Melee . | . . . Knockbacks . | . . . Impact . | . . . Kinetic . | . . . Secondary . | . . . Self-Inflicted Damage 168 | . 168 . Shots 3 | . 3 . Rammed . | . . . Targets Rammed . | . . . Kicked . | . . . Crushed . | . . . Highest Temperature 193 | . 193 82 Average Temperature 42 | . 43 34 Received Heat Transfer 375 | . 117 258 Siege Activations . | . . . Martial Activations . | . . . Shielding Activations . | . . . Robots Disrupted . | . . . Combat Hostiles . | . . . Robots Corrupted . | . . . Combat Hostiles . | . . . Parts Fried . | . . . Impact Corruptions . | . . . Robots Melted . | . . . Combat Hostiles . | . . . Parts Melted . | . . . Heat Transferred 200 | . 50 150 Parts Sabotaged . | . . . Parts Stolen . | . . . Parts Stripped . | . . . Power Chain Reactions 1 | . 1 . Alert | -11 -10 -10 ------- Run | Yrd Mat Sub Maximum Alert Level . | . . . Low Security (%) 100 | 100 100 . Level 1 . | . . . Level 2 . | . . . Level 3 . | . . . Level 4 . | . . . Level 5 . | . . . High Security . | . . . Max Security . | . . . Peak Influence 93 | . 93 . Initial . | . . . Average 27 | . 30 . Influence Increases 396 | . 296 100 Destroy 0b10 Robot/C 220 | . 140 80 Destroy 0b10 Robot/NC 20 | . 20 . Destroy Leader 56 | . 36 20 Successful Hack 29 | . 29 . Disable Machine 30 | . 30 . Destroy Structure 41 | . 41 . Influence Decreases 396 | . 296 100 Time Decay 336 | . 276 60 Lost Part 60 | . 20 40 Squads Dispatched 1 | . 1 . Investigation 1 | . 1 . Extermination . | . . . Reinforcement . | . . . Assault . | . . . Garrison . | . . . Intercept . | . . . Searches Triggered . | . . . Construction Impeded . | . . . Haulers Reinforced . | . . . Active Scanning Responses . | . . . Cargo Convoy Interrupts . | . . . Stealth | -11 -10 -10 --------- Run | Yrd Mat Sub Distress Signals . | . . . Communications Jammed . | . . . Distress Signals . | . . . Times Spotted 17 | . 10 7 Peak Tracking Total 3 | . 3 3 Tactical Retreats . | . . . Traps | -11 -10 -10 ------- Run | Yrd Mat Sub Traps Triggered 3 | . 1 2 Indirectly . | . . . Trap Hack Attempts . | . . . Triggered . | . . . Disarmed . | . . . Reprogrammed . | . . . Reused . | . . . Traps Extracted . | . . . Installed . | . . . Triggered . | . . . Machines | -11 -10 -10 ---------- Run | Yrd Mat Sub Machines Disabled 3 | . 3 . Max in Single Turn 2 | . 2 . Machines Repaired . | . . . Machines Dismantled . | . . . Machines Sabotaged . | . . . Overloaded Fab Kills . | . . . Hacking | -11 -10 -10 --------- Run | Yrd Mat Sub Machines Accessed 7 | . 7 . Terminals 6 | . 6 . Fabricators . | . . . Repair Stations 1 | . 1 . Recycling Units . | . . . Scanalyzers . | . . . Garrison Access . | . . . Total Hacks 20 | . 20 . Successful 8 | . 8 . Failed 12 | . 12 . Catastrophic 2 | . 2 . Database Lockouts . | . . . Manual . | . . . Terminals 19 | . 19 . Fabricators . | . . . Repair Stations 1 | . 1 . Recycling Units . | . . . Scanalyzers . | . . . Garrison Access . | . . . Terminal Hacks 7 | . 7 . Record 1 | . 1 . Prototype ID Bank 1 | . 1 . Recall Reinforcements 1 | . 1 . Zone Layout 4 | . 4 . Fabricator Hacks . | . . . Repair Station Hacks 1 | . 1 . Scan Component 1 | . 1 . Recycling Unit Hacks . | . . . Scanalyzer . | . . . Garrison Access Hacks . | . . . Unauthorized Hacks . | . . . Terminals . | . . . Fabricators . | . . . Repair Stations . | . . . Recycling Units . | . . . Scanalyzers . | . . . Garrison Access . | . . . Data Cores Recovered . | . . . Used . | . . . Hacking Detections 5 | . 5 . Full Trace Events 3 | . 3 . Feedback Events . | . . . Feedback Blocked . | . . . Robot Schematics Acquired . | . . . Robots Built . | . . . Authchips . | . . . Time . | . . . Total Robot Build Rating . | . . . Part Schematics Acquired . | . . . Parts Built . | . . . Authchips . | . . . Time . | . . . Total Part Build Rating . | . . . Part Studies Acquired . | . . . Parts Repaired . | . . . Time . | . . . Parts Recycled . | . . . Recycled Matter . | . . . Retrieved Matter . | . . . Retrieved Components . | . . . Parts Scanalyzed . | . . . Part Schematics Acquired . | . . . Parts Damaged . | . . . Bothacking | -11 -10 -10 ------------ Run | Yrd Mat Sub Used RIF Installer . | . . . Robots Hacked . | . . . Non-combat . | . . . Combat . | . . . Robot Hacks Applied . | . . . Relay Couplers Released . | . . . Fabnet Peak Effective % . | . . . Robots Rewired . | . . . Allies Hacked . | . . . Hacks Repelled . | . . . Allies | -11 -10 -10 -------- Run | Yrd Mat Sub Total Allies . | . . . Largest Group . | . . . Highest-Rated Group . | . . . Highest-Rated Ally . | . . . Total Orders . | . . . Ally Attacks . | . . . Total Damage . | . . . Kills . | . . . Allies Corrupted . | . . . Allies Melted . | . . . Intel | -11 -10 -10 ------- Run | Yrd Mat Sub Active Infowar (turns) 165 | . 153 12 Optics 12 | . . 12 Seismic 153 | . 153 . Robot Analysis Total . | . . . Derelict Logs Recovered . | . . . Drone Launches . | . . . Drone Recoveries . | . . . Exploration | -11 -10 -10 ------------- Run | Yrd Mat Sub Turns Passed 1570 | 95 893 582 Spaces Moved 814 | 53 479 282 Core 3 | 3 . . Treads 811 | 50 479 282 Legs . | . . . Wheels . | . . . Hover . | . . . Flight . | . . . Fastest Speed 50 | 50 160 160 Average Speed 159 | 153 160 160 Slowest Speed 240 | 160 160 240 Overloaded Moves . | . . . Propulsion Burnouts . | . . . Robots Hopped . | . . . Potential Cave-ins . | . . . Cave-ins Triggered . | . . . Exploration Rate (%) 25 | 3 58 15 Regions Visited 2 Branch Regions 1 Pre-discovered Areas . | . . . Known Exits Taken . | . . . Unknown Exits Taken 2 | 1 1 . Scrap Searched . | . . . Spaces Dug . | . . . Terrain Destroyed 48 | . 48 . Melee . | . . . Projectile . | . . . AOE 48 | . 48 . Terrain Rammed . | . . . Walls Destroyed . | . . . Machines Disabled . | . . . Actions | -11 -10 -10 --------- Run | Yrd Mat Sub Total 965 | 67 562 336 Wait 30 | . 27 3 Move 812 | 52 478 282 Hop . | . . . Pick Up 29 | 9 16 4 Fast Attach . | . . . Attach 16 | 6 4 6 Detach . | . . . Swap 7 | . 5 2 Drop 6 | . 6 . Fire 65 | . 26 39 Melee . | . . . Ram . | . . . Kick . | . . . Crush . | . . . Escape Stasis . | . . . Rewire . | . . . Trap . | . . . Miscellaneous . | . . . Route ------- -11/Scrapyard -10/Materials (discovered 5 exits: [*Mat x3] / [*Min] / [*Sub]) -10/Subcaves (discovered 1 exit: [*Mat]) History --------- Turn | Location | Event 39 | -11/Scrapyard | Discovered new exit (range 16) 96 | -11/Scrapyard | Entered Materials 319 | -10/Materials | Build established: Mutant 326 | -10/Materials | Discovered new exit (range 11) 443 | -10/Materials | Discovered new exit (range 15) 612 | -10/Materials | Core integrity fell below 50% 693 | -10/Materials | Discovered new exit (range 14) 850 | -10/Materials | Discovered new exit (range 17) 973 | -10/Materials | Discovered new exit (range 11) 989 | -10/Materials | Entered Subcaves 990 | -10/Subcaves | Approached by a straggling Scientist 1065 | -10/Subcaves | Core integrity fell below 20% 1178 | -10/Subcaves | Lost 4 parts (2p1n1w) 1282 | -10/Subcaves | Shifting Twisted Machinery released Flamer 1283 | -10/Subcaves | Shifting Twisted Machinery released Mak. Axe 1429 | -10/Subcaves | Build established: Scavenger-Mutant 1547 | -10/Subcaves | Discovered new exit (range 9) 1571 | -10/Subcaves | Destroyed by S9-Y4Z(R) with Subdweller Machine Gun Last Messages --------------- Mak. Axe falls loose from the Twisted Machinery. 01352_ System corrupted: Heat flow error (+132). 01375_ System corrupted: Energy discharge (-60). 01434_ Triggered Piercing Trap. 01434_ Spikes shoot up from the floor. 01434_ Critical hit (Impale). 01469_ ,Q>WD 7GY TIVBAZPO 01515_ Triggered Piercing Trap. 01515_ Spikes shoot up from the floor. 01515_ Critical hit (Impale). 01529_ System corrupted: Component data lost. 01547_ Flight Unit fries itself beyond repair. 01547_ EXIT=FOUND 01548_ S-10 Pest destroyed. 01555_ Lgt. Ion Engine fries itself beyond repair. 01555_ Flight Unit fries itself beyond repair. 01557_ Imp. Heat Sink destroyed. 01559_ Lgt. Assault Rifle fries itself beyond repair. Map ----- +----------------------------------------------------+ | ##### ##?# #????????????????????????? | | # #??## ##?# ^ #????????????????????????? | | # # ###### ### ### #???????????????????? | | ### ### ^ #???????????????????? | | ### ????????????????????? | | ## # "###" ??????????????????????? | | # #### "#?###" ?????????????????????? | | # ##??## ""#????# #????????????????????? | | #????# ##????? #????????????????????? | | #????## ##?????? #???????????????????? | | ######?????## #???#" ????????????????????? | | # ##??????????# #???"" ""????????????????????? | | ####???????????## ##???"" "#????????????????????? | | ????????????????# ##??#"" ""#???????????????????? | | ????????????????# ### "" #????????????????????? | | ????????????????# "#????????????????????????? | | ???????????????# ## "#????????????????????????? | | ???????????????# ### "#????????????????????????? | | ???????????????# ## ##?????##?????????????????? | | ???????????????## # " #????" ????#?????????????? | | ???????????????? ## ##???# " ## ##????????????? | | ???????????????## ## #??# "" " ?????????????? | | ???????????????# # ###="""="""??????????????? | | ???????????????# # "[ %"#????????????????? | | ???????????????#### R% % ##???????????????? | | ??????????????????## @ %<" #???????????????? | | ???????????????????#### "" ##???????????????? | | ??????????????????????## "# #????????????????? | | ??????????????????????? # ##? #???????????????? | | ??????????????????????%### #????????????????????? | | ????????????????????? #??? ##????????????????????? | | ?????????????????????#????##?????????????????????? | | ?????????????????????????????????????????????????? | | ?????????????????????????????????????????????????? | | ?????????????????????????????????????????????????? | | ?????????????????????????????????????????????????? | | ?????????????????????????????????????????????????? | | ?????????????????????????????????????????????????? | | ?????????????????????????????????????????????????? | | ?????????????????????????????????????????????????? | | ?????????????????????????????????????????????????? | | ?????????????????????????????????????????????????? | | ?????????????????????????????????????????????????? | | ?????????????????????????????????????????????????? | | ?????????????????????????????????????????????????? | | ?????????????????????????????????????????????????? | | ?????????????????????????????????????????????????? | | ?????????????????????????????????????????????????? | | ?????????????????????????????????????????????????? | | ?????????????????????????????????????????????????? | +----------------------------------------------------+ Best States ------------- Heat Dissipation 39 Energy Generation 14 Energy Capacity 160 Matter Stores 300 Matter Capacity 300 Sight Range 18 Terrain Scan Density 10 Evasion (%) 40 Recoil Reduction 2 Item Schematics ----------------- None Robot Schematics ------------------ None Fabricated ------------ Nothing Repaired ---------- Nothing Studied --------- None Alien Tech Used ----------------- None Achievements -------------- None Challenges ------------ None Game ------ Seed NodePhasingAccelerator Manual? 0 Play Time 00:14:56 Cumulative 22.6 hours Start 2026.08.21 @ 10:20:24 End 2026.08.21 @ 10:33:39 Sessions 1 Manual Loads 0 Difficulty Rogue Special Mode None Game No. 36 Rogue 36 Adventurer 0 Explorer 0 Win Type - Total 0 Types 0/0/0/0/0/0/0/0/0/0 Lore% 10 Gallery% 16 Achievement% 15 Wizard Run 0 Options --------- Layout 1 ASCII 0 Keyboard 0 Movement Mouse Keybinds 0 Fullscreen 1 Font 16/SmallcapsGlow Map View 50x40 Zoom Use 0% Tactical HUD 1 Map Filters NONE Filters NONE Steam SD RUN: 0e98202f-6462-4b1b-8885-d4e23978e257